{"text_format":"1","workbook":"xlsx","n_sheets":9,"sheets":["Спецификация","Контрагент","АБС","Поставщик","Цены на инертные","1С списание","Отгрузка","Списание завод","Приход"],"not_rendered":{"charts":0,"images":2,"macros":1,"external_links":0,"defined_names":3,"comments":0,"pivot_tables":0},"unopened":[],"bounds":{"document_bytes":16777216,"sheet_cells":100000,"rows_first":2000,"rows_last":500,"rows_between":2000,"halvings":0,"cell_chars":16384,"cell_head_chars":4096},"cells_cut":0,"cells_raw":0,"read":"whole","date_system":"1900"}

{"sheet":"Спецификация","index":0,"n_rows":21,"n_cols":9,"rows_kept":21,"cut":false,"hidden":false,"merged":[]}
["Счет","Начало","Окончание","Контрагент","Продукция","Цена","Договор","№ спецификации","Завел (Ответственный)"]
[{"$f":"IF(Спецификация[[#This Row],[Начало]]=\"\",\"\",(SUMPRODUCT(1/COUNTIF($A$1:A1,$A$1:A1))))","v":1},"2018-01-01","2018-03-02","ООО \"Атика\"","БСТ В7,5 П3 F100 W2 (Гравий)",2900]
[{"$f":"IF(Спецификация[[#This Row],[Начало]]=\"\",\"\",(SUMPRODUCT(1/COUNTIF($A$1:A2,$A$1:A2))))","v":2},"2018-01-01","2018-03-02","ООО \"Атика\"","БСТ В7,5 П3 F100 W2 (Гравий)",3200]
[{"$f":"IF(Спецификация[[#This Row],[Начало]]=\"\",\"\",(SUMPRODUCT(1/COUNTIF($A$1:A3,$A$1:A3))))","v":3},"2018-01-01","2018-03-02","ООО \"Атика\"","БСТ В12,5 П3 F100 W2 (Гравий)",3000]
[{"$f":"IF(Спецификация[[#This Row],[Начало]]=\"\",\"\",(SUMPRODUCT(1/COUNTIF($A$1:A4,$A$1:A4))))","v":4},"2018-01-01","2018-03-02","ООО \"Атика\"","БСТ В12,5 П4 F100 W2 (Гравий)",3000]
[{"$f":"IF(Спецификация[[#This Row],[Начало]]=\"\",\"\",(SUMPRODUCT(1/COUNTIF($A$1:A5,$A$1:A5))))","v":5},"2018-01-01","2018-03-02","ООО \"Атика\"","БСТ В15 П3 F150 W6 (Гравий)",3150]
[{"$f":"IF(Спецификация[[#This Row],[Начало]]=\"\",\"\",(SUMPRODUCT(1/COUNTIF($A$1:A6,$A$1:A6))))","v":6},"2018-01-01","2018-03-02","ООО \"Атика\"","БСТ В15 П3 F150 W6 (Гравий)",3150]
[{"$f":"IF(Спецификация[[#This Row],[Начало]]=\"\",\"\",(SUMPRODUCT(1/COUNTIF($A$1:A7,$A$1:A7))))","v":7},"2018-01-01","2018-03-02","ООО \"Атика\"","БСТ В20 П3 F150 W8 (Гравий)",3300]
[{"$f":"IF(Спецификация[[#This Row],[Начало]]=\"\",\"\",(SUMPRODUCT(1/COUNTIF($A$1:A8,$A$1:A8))))","v":8},"2018-03-03","2018-06-05","ООО \"Атика\"","БСТ В20 П4 F150 W8 (Гравий)",3300]
[{"$f":"IF(Спецификация[[#This Row],[Начало]]=\"\",\"\",(SUMPRODUCT(1/COUNTIF($A$1:A9,$A$1:A9))))","v":9},"2018-03-03","2018-06-05","ООО \"Атика\"","БСТ В22,5 П3 F200 W8 (Гравий)",3400]
[{"$f":"IF(Спецификация[[#This Row],[Начало]]=\"\",\"\",(SUMPRODUCT(1/COUNTIF($A$1:A10,$A$1:A10))))","v":10},"2018-03-03","2018-06-05","ООО \"Атика\"","БСТ В22,5 П4 F200 W8 (Гравий)",3400]
[{"$f":"IF(Спецификация[[#This Row],[Начало]]=\"\",\"\",(SUMPRODUCT(1/COUNTIF($A$1:A11,$A$1:A11))))","v":11},"2018-03-03","2018-06-05","ООО \"Атика\"","БСТ В25 П3 F200 W8 (Гравий)",3450]
[{"$f":"IF(Спецификация[[#This Row],[Начало]]=\"\",\"\",(SUMPRODUCT(1/COUNTIF($A$1:A12,$A$1:A12))))","v":12},"2018-03-03","2018-06-05","ООО \"Атика\"","БСТ В25 П4 F200 W8 (Гравий)",3450]
[{"$f":"IF(Спецификация[[#This Row],[Начало]]=\"\",\"\",(SUMPRODUCT(1/COUNTIF($A$1:A13,$A$1:A13))))","v":13},"2018-03-03","2018-06-05","ООО \"Атика\"","БСТ В25 П3 F300 W10 (Гранит)",3650]
[{"$f":"IF(Спецификация[[#This Row],[Начало]]=\"\",\"\",(SUMPRODUCT(1/COUNTIF($A$1:A14,$A$1:A14))))","v":14},"2018-03-03","2018-06-05","ООО \"Атика\"","БСТ В25 П4 F300 W10 (Гранит)",3650]
[{"$f":"IF(Спецификация[[#This Row],[Начало]]=\"\",\"\",(SUMPRODUCT(1/COUNTIF($A$1:A15,$A$1:A15))))","v":15},"2018-05-28","2018-12-12","ООО \"БИТОНИР\"","БСТ В15 П3 F150 W6 (Гравий)",4500]
[{"$f":"IF(Спецификация[[#This Row],[Начало]]=\"\",\"\",(SUMPRODUCT(1/COUNTIF($A$1:A16,$A$1:A16))))","v":16},"2018-05-28","2018-12-12","ООО \"БИТОНИР\"","БСТ В15 П3 F150 W6 (Гравий)",3800]
[{"$f":"IF(Спецификация[[#This Row],[Начало]]=\"\",\"\",(SUMPRODUCT(1/COUNTIF($A$1:A17,$A$1:A17))))","v":17},"2018-05-28","2018-12-12","ООО \"БИТОНИР\"","БСТ В20 П3 F150 W8 (Гравий)",5000]
[{"$f":"IF(Спецификация[[#This Row],[Начало]]=\"\",\"\",(SUMPRODUCT(1/COUNTIF($A$1:A18,$A$1:A18))))","v":18},"2018-05-28","2018-12-12","ООО \"БИТОНИР\"","БСТ В20 П4 F150 W8 (Гравий)",6000]
[{"$f":"IF(Спецификация[[#This Row],[Начало]]=\"\",\"\",(SUMPRODUCT(1/COUNTIF($A$1:A19,$A$1:A19))))","v":19},"2018-05-28","2018-12-12","ООО \"БИТОНИР\"","БСТ В22,5 П3 F200 W8 (Гравий)",7000]
[{"$f":"IF(Спецификация[[#This Row],[Начало]]=\"\",\"\",(SUMPRODUCT(1/COUNTIF($A$1:A20,$A$1:A20))))","v":20},"2018-05-28","2018-12-12","ООО \"БИТОНИР\"","БСТ В22,5 П4 F200 W8 (Гравий)",8000]

{"sheet":"Контрагент","index":1,"n_rows":7,"n_cols":5,"rows_kept":7,"cut":false,"hidden":true,"merged":[]}
["Контрагент","Фамилия","Имя","Должность","Мобильный телефон"]
["ООО \"Атика\"","Шевченко","Дмитрий","Ген.Директор"]
["ООО \"БЭСТ БЕТОН\"","Супрун","Станислав","Ген.Директор"]
["ООО \"Комфорт Плюс\"","Супрун","Игорь","Ген.Директор"]
["ООО \"Фтор Мед Царицыно\"","Захаров","Сергей","Ген.Директор"]
["Ч/Л \"Мифтахов\"","Мифтахов","Илья","Частное лицо"]
["Ч/Л \"Рустам\"",null,null,"Частное лицо"]

{"sheet":"АБС","index":2,"n_rows":27,"n_cols":8,"rows_kept":27,"cut":false,"hidden":true,"merged":[]}
["Поставщик","Госномер ТС","Водитель","Телефон","Марка","Объем","Ось","Порожний"]
["И/П \"Торопов\"","н265ко77","Саидов Эргашали","8-925-209-15-36","Камаз",9,"4-х осный",{"$f":"IF(АБС[[#This Row],[Ось]]=\"4-х осный\",8,IF(АБС[[#This Row],[Ось]]=\"\",\"\",7))","v":8}]
["ООО \"Аист\"","н877ке77","Устинов Рустам","8-925-082-29-95","Маз",9,"4-х осный",{"$f":"IF(АБС[[#This Row],[Ось]]=\"4-х осный\",8,IF(АБС[[#This Row],[Ось]]=\"\",\"\",7))","v":8}]
["ООО \"Атика\"","е922тм777","","","Камаз",8,"4-х осный",{"$f":"IF(АБС[[#This Row],[Ось]]=\"4-х осный\",8,IF(АБС[[#This Row],[Ось]]=\"\",\"\",7))","v":8}]
["ООО \"Атика\"","т956ск777","","","Камаз",8,"4-х осный",{"$f":"IF(АБС[[#This Row],[Ось]]=\"4-х осный\",8,IF(АБС[[#This Row],[Ось]]=\"\",\"\",7))","v":8}]
["ООО \"Атика\"","н001тс777","","","Камаз",8,"4-х осный",{"$f":"IF(АБС[[#This Row],[Ось]]=\"4-х осный\",8,IF(АБС[[#This Row],[Ось]]=\"\",\"\",7))","v":8}]
["Ч/Л \"Райнур\"","в580ух199","Каримов Райнур","8-925-255-51-23","Камаз",7,"3-х осный",{"$f":"IF(АБС[[#This Row],[Ось]]=\"4-х осный\",8,IF(АБС[[#This Row],[Ось]]=\"\",\"\",7))","v":7}]
["Спецстрой","к187ус77","Степанян Виталий","8-925-208-60 / 8-999-800-34-05","Ман",6,"3-х осный",{"$f":"IF(АБС[[#This Row],[Ось]]=\"4-х осный\",8,IF(АБС[[#This Row],[Ось]]=\"\",\"\",7))","v":7}]
["Ч/Л \"Максим\"","к553со62","Ярошенко Андрей","8-909-408-44-40","Ивеко",12,"4-х осный",{"$f":"IF(АБС[[#This Row],[Ось]]=\"4-х осный\",8,IF(АБС[[#This Row],[Ось]]=\"\",\"\",7))","v":8}]
["Ч/Л \"Максим\"","о494кн161","Семенов Сергей","8-966-144-67-08","Ман",10,"4-х осный",{"$f":"IF(АБС[[#This Row],[Ось]]=\"4-х осный\",8,IF(АБС[[#This Row],[Ось]]=\"\",\"\",7))","v":8}]
["Ч/Л \"Мифтахов\"","у573мт199","Мифтахов Илья","8-926-547-47-79","Рено",8,"4-х осный",{"$f":"IF(АБС[[#This Row],[Ось]]=\"4-х осный\",8,IF(АБС[[#This Row],[Ось]]=\"\",\"\",7))","v":8}]
["Ч/Л \"Наумчик\"","т564вт64","Наумчик Сергей","8-926-863-72-26","Ман",10,"3-х осный",{"$f":"IF(АБС[[#This Row],[Ось]]=\"4-х осный\",8,IF(АБС[[#This Row],[Ось]]=\"\",\"\",7))","v":7}]
["Ч/Л \"Рустам\"","м954ко10","Глявин Николай","8-961-108-60-31","Вольво",10,"4-х осный",{"$f":"IF(АБС[[#This Row],[Ось]]=\"4-х осный\",8,IF(АБС[[#This Row],[Ось]]=\"\",\"\",7))","v":8}]
["Ч/Л \"Рустам\"","м954ко10","Жданкин Иван","8-926-844-59-19","Вольво",10,"4-х осный",{"$f":"IF(АБС[[#This Row],[Ось]]=\"4-х осный\",8,IF(АБС[[#This Row],[Ось]]=\"\",\"\",7))","v":8}]
["Ч/Л \"Филипов\"","м646ум76","Филипов Григорий","8-936-777-94-55","Ман",11,"4-х осный",{"$f":"IF(АБС[[#This Row],[Ось]]=\"4-х осный\",8,IF(АБС[[#This Row],[Ось]]=\"\",\"\",7))","v":8}]
[null,null,null,null,null,null,null,{"$f":"IF(АБС[[#This Row],[Ось]]=\"4-х осный\",8,IF(АБС[[#This Row],[Ось]]=\"\",\"\",7))","v":""}]
[null,null,null,null,null,null,null,{"$f":"IF(АБС[[#This Row],[Ось]]=\"4-х осный\",8,IF(АБС[[#This Row],[Ось]]=\"\",\"\",7))","v":""}]
[null,null,null,null,null,null,null,{"$f":"IF(АБС[[#This Row],[Ось]]=\"4-х осный\",8,IF(АБС[[#This Row],[Ось]]=\"\",\"\",7))","v":""}]
[null,null,null,null,null,null,null,{"$f":"IF(АБС[[#This Row],[Ось]]=\"4-х осный\",8,IF(АБС[[#This Row],[Ось]]=\"\",\"\",7))","v":""}]
[null,null,null,null,null,null,null,{"$f":"IF(АБС[[#This Row],[Ось]]=\"4-х осный\",8,IF(АБС[[#This Row],[Ось]]=\"\",\"\",7))","v":""}]
[null,null,null,null,null,null,null,{"$f":"IF(АБС[[#This Row],[Ось]]=\"4-х осный\",8,IF(АБС[[#This Row],[Ось]]=\"\",\"\",7))","v":""}]
[null,null,null,null,null,null,null,{"$f":"IF(АБС[[#This Row],[Ось]]=\"4-х осный\",8,IF(АБС[[#This Row],[Ось]]=\"\",\"\",7))","v":""}]
[null,null,null,null,null,null,null,{"$f":"IF(АБС[[#This Row],[Ось]]=\"4-х осный\",8,IF(АБС[[#This Row],[Ось]]=\"\",\"\",7))","v":""}]
[null,null,null,null,null,null,null,{"$f":"IF(АБС[[#This Row],[Ось]]=\"4-х осный\",8,IF(АБС[[#This Row],[Ось]]=\"\",\"\",7))","v":""}]
[null,null,null,null,null,null,null,{"$f":"IF(АБС[[#This Row],[Ось]]=\"4-х осный\",8,IF(АБС[[#This Row],[Ось]]=\"\",\"\",7))","v":""}]
[null,null,null,null,null,null,null,{"$f":"IF(АБС[[#This Row],[Ось]]=\"4-х осный\",8,IF(АБС[[#This Row],[Ось]]=\"\",\"\",7))","v":""}]
[null,null,null,null,null,null,null,{"$f":"IF(АБС[[#This Row],[Ось]]=\"4-х осный\",8,IF(АБС[[#This Row],[Ось]]=\"\",\"\",7))","v":""}]

{"sheet":"Поставщик","index":3,"n_rows":9,"n_cols":3,"rows_kept":9,"cut":false,"hidden":true,"merged":[]}
["Поставщик","Материал","Вид"]
["ООО \"Атика\"","Цемент","Т/С"]
["ООО \"БЭСТ БЕТОН\"","Песок","Ж/Д"]
["ООО \"Комфорт Плюс\"","Гранит"]
["ООО \"Фтор Мед Царицыно\"","Гравий"]
["Ч/Л \"Мифтахов\"","Вторичка"]
["Ч/Л \"Рустам\"","СП-3"]
[null,"Мурапор"]
[null,"Криопласт"]

{"sheet":"Цены на инертные","index":4,"n_rows":4,"n_cols":12,"rows_kept":4,"cut":false,"hidden":true,"merged":[]}
["Начало","Окончание","Цемент","Песок строительный","Песок растворный","Гранит","Гравий","Вторичка","Вода","СП-3","Мурапор","Криопласт"]
["2018-01-01","2018-03-02",450,500,1500,1800,1510,450,35,20.5,67.7,28]
["2018-03-03","2018-09-05",4650,595,1550,1920,1650,470,37,21,70,30]
["2018-09-06","2018-12-31",2,2,2,2,2,2,2,2,2,2]

{"sheet":"1С списание","index":5,"n_rows":6,"n_cols":24,"rows_kept":6,"cut":false,"hidden":true,"merged":[]}
["Начало","Окончание","Продукция","Цемент","Песок строительный","Песок растворный","Гранит","Гравий","Вторичка","Вода","СП-3","Мурапор","Криопласт","Себестоимость",null,null,null,null,null,null,null,null,null,"Цены на инертные"]
["2018-01-01","2018-03-02","БСТ В7,5 П3 F100 W2 (Гравий)",7,7,null,null,7,null,7,7,null,null,1979.98]
["2018-03-03","2018-03-05","БСТ В7,5 П3 F100 W2 (Гравий)",175,456,null,null,456,null,175,null,1.8,null,10.98]
["2018-09-06","2018-12-24","БСТ В7,5 П3 F100 W2 (Гравий)",3,3,null,null,3,null,3,null,null,3,0]
[null,null,null,null,null,null,null,null,null,null,null,null,null,0]
[null,null,null,null,null,null,null,null,null,null,null,null,null,0]

{"sheet":"Отгрузка","index":6,"n_rows":23,"n_cols":14,"rows_kept":23,"cut":false,"hidden":false,"merged":[]}
[]
["Дата","2018-03-04"]
[]
["Накладная"]
[]
["Контрагент","ООО \"Атика\""]
[]
["Госномер ТС"]
[]
["Продукция","БСТ В12,5 П3 F100 W2 (Гравий)"]
[]
["Количество"]
[]
["Доставка"]
[]
["Примечание"]
[]
[null,null,null,null,null,{"$f":"SUBTOTAL(9,Отгрузка[Количество])","v":6},{"$f":"SUBTOTAL(9,Отгрузка[Стоимость])","v":19100},{"$f":"SUBTOTAL(9,Отгрузка[Доставка])","v":1450},{"$f":"SUBTOTAL(9,Отгрузка[ИТОГО])","v":27950},{"$f":"SUBTOTAL(9,Отгрузка[Порожний прогон])","v":9150},{"$f":"SUBTOTAL(9,Отгрузка[Простой])","v":350},{"$f":"SUBTOTAL(9,Отгрузка[Стоимость ИТОГО])","v":37450}]
["Дата","Накладная","Контрагент","Госномер ТС","Продукция","Количество","Стоимость","Доставка","ИТОГО","Порожний прогон","Простой","Стоимость ИТОГО","Поставщик","Примечание"]
["2018-03-03",null,"ООО \"Атика\"","у573мт199","БСТ В7,5 П3 F100 W2 (Гравий)",3,3200,500,11100,2500,350,13950,"Ч/Л \"Мифтахов\""]
["2018-03-04",3,"ООО \"Атика\"","н001тс777","БСТ В15 П3 F150 W6 (Гравий)",1,6300,450,6750,3150,null,9900,"Самовывоз","д"]
["2018-03-05",4,"ООО \"Атика\"","о494кн161","БСТ В20 П4 F150 W8 (Гравий)",1,3300,350,3650,2450,null,6100,"Ч/Л \"Максим\"","ооо"]
["2018-03-05",5,"ООО \"Атика\"","н001тс777","БСТ В15 П3 F150 W6 (Гравий)",1,6300,150,6450,1050,null,7500,"Самовывоз","жжж"]

{"sheet":"Списание завод","index":7,"n_rows":5,"n_cols":25,"rows_kept":5,"cut":false,"hidden":true,"merged":[]}
["Начало","Окончание","Продукция","Цемент","Песок строительный","Песок растворный","Гранит","Гравий","Вторичка","Вода","СП-3","Мурапор","Криопласт","Себестоимость",null,null,null,null,null,null,null,null,null,null,"Цены на инертные"]
["2018-01-01","2018-03-02","БСТ В7,5 П3 (Гравий)",160,980,null,null,935,null,175,2.21,null,null,1979.98]
["2018-03-03","2018-03-05","БСТ В7,5 П3 (Гравий)",3,4,null,null,5,null,5,null,6,null,24.77]
[null,null,null,null,null,null,null,null,null,null,null,null,null,0]
[null,null,null,null,null,null,null,null,null,null,null,null,null,0]

{"sheet":"Приход","index":8,"n_rows":24,"n_cols":11,"rows_kept":24,"cut":false,"hidden":true,"merged":[]}
[]
[]
[]
[]
[]
[]
[]
[null,null,null,null,null,null,null,null,null,null,{"$f":"SUBTOTAL(9,Приход[Нетто для бухгалтерии])","v":0}]
["Дата","Поставщик","Материал","Вид поставки","№ ТС/Вагона","№ Накладной","Брутто, (т)","Тара, (т)","Нетто, (т)","Нетто по накладным, (т)","Нетто для бухгалтерии"]
["2018-10-21","ООО \"Атика\"","Цемент","Т/С",null,null,null,null,{"$f":"Приход[[#This Row],[Брутто, (т)]]-Приход[[#This Row],[Тара, (т)]]","v":0},null,{"$f":"SMALL(Приход[[#This Row],[Нетто, (т)]:[Нетто по накладным, (т)]],1)","v":0}]
[null,null,"Криопласт",null,null,null,null,null,{"$f":"Приход[[#This Row],[Брутто, (т)]]-Приход[[#This Row],[Тара, (т)]]","v":0},null,{"$f":"SMALL(Приход[[#This Row],[Нетто, (т)]:[Нетто по накладным, (т)]],1)","v":0}]
[null,null,null,null,null,null,null,null,{"$f":"Приход[[#This Row],[Брутто, (т)]]-Приход[[#This Row],[Тара, (т)]]","v":0},null,{"$f":"SMALL(Приход[[#This Row],[Нетто, (т)]:[Нетто по накладным, (т)]],1)","v":0}]
[null,null,null,null,null,null,null,null,{"$f":"Приход[[#This Row],[Брутто, (т)]]-Приход[[#This Row],[Тара, (т)]]","v":0},null,{"$f":"SMALL(Приход[[#This Row],[Нетто, (т)]:[Нетто по накладным, (т)]],1)","v":0}]
[null,null,null,null,null,null,null,null,{"$f":"Приход[[#This Row],[Брутто, (т)]]-Приход[[#This Row],[Тара, (т)]]","v":0},null,{"$f":"SMALL(Приход[[#This Row],[Нетто, (т)]:[Нетто по накладным, (т)]],1)","v":0}]
[null,null,null,null,null,null,null,null,{"$f":"Приход[[#This Row],[Брутто, (т)]]-Приход[[#This Row],[Тара, (т)]]","v":0},null,{"$f":"SMALL(Приход[[#This Row],[Нетто, (т)]:[Нетто по накладным, (т)]],1)","v":0}]
[null,null,null,null,null,null,null,null,{"$f":"Приход[[#This Row],[Брутто, (т)]]-Приход[[#This Row],[Тара, (т)]]","v":0},null,{"$f":"SMALL(Приход[[#This Row],[Нетто, (т)]:[Нетто по накладным, (т)]],1)","v":0}]
[null,null,null,null,null,null,null,null,{"$f":"Приход[[#This Row],[Брутто, (т)]]-Приход[[#This Row],[Тара, (т)]]","v":0},null,{"$f":"SMALL(Приход[[#This Row],[Нетто, (т)]:[Нетто по накладным, (т)]],1)","v":0}]
[null,null,null,null,null,null,null,null,{"$f":"Приход[[#This Row],[Брутто, (т)]]-Приход[[#This Row],[Тара, (т)]]","v":0},null,{"$f":"SMALL(Приход[[#This Row],[Нетто, (т)]:[Нетто по накладным, (т)]],1)","v":0}]
[null,null,null,null,null,null,null,null,{"$f":"Приход[[#This Row],[Брутто, (т)]]-Приход[[#This Row],[Тара, (т)]]","v":0},null,{"$f":"SMALL(Приход[[#This Row],[Нетто, (т)]:[Нетто по накладным, (т)]],1)","v":0}]
[null,null,null,null,null,null,null,null,{"$f":"Приход[[#This Row],[Брутто, (т)]]-Приход[[#This Row],[Тара, (т)]]","v":0},null,{"$f":"SMALL(Приход[[#This Row],[Нетто, (т)]:[Нетто по накладным, (т)]],1)","v":0}]
[null,null,null,null,null,null,null,null,{"$f":"Приход[[#This Row],[Брутто, (т)]]-Приход[[#This Row],[Тара, (т)]]","v":0},null,{"$f":"SMALL(Приход[[#This Row],[Нетто, (т)]:[Нетто по накладным, (т)]],1)","v":0}]
[null,null,null,null,null,null,null,null,{"$f":"Приход[[#This Row],[Брутто, (т)]]-Приход[[#This Row],[Тара, (т)]]","v":0},null,{"$f":"SMALL(Приход[[#This Row],[Нетто, (т)]:[Нетто по накладным, (т)]],1)","v":0}]
[null,null,null,null,null,null,null,null,{"$f":"Приход[[#This Row],[Брутто, (т)]]-Приход[[#This Row],[Тара, (т)]]","v":0},null,{"$f":"SMALL(Приход[[#This Row],[Нетто, (т)]:[Нетто по накладным, (т)]],1)","v":0}]
[null,null,null,null,null,null,null,null,{"$f":"Приход[[#This Row],[Брутто, (т)]]-Приход[[#This Row],[Тара, (т)]]","v":0},null,{"$f":"SMALL(Приход[[#This Row],[Нетто, (т)]:[Нетто по накладным, (т)]],1)","v":0}]